Workbook

Sheet Read Me
B2: Note: Please follow following three steps to raise flaring waiver form
A5: 1 | B5: Enable Macros, by clicking the button on top.
J7: Click Here
A8: 2
I14: Click Here
A27: 3 | B27: Following Form will open up. Please complete the form to raise the waiver

Sheet Revision History
B2: Version | C2: By | D2: Description | E2: Date
B3: Rev 1 | C3: Harshit Agrawal | D3: This tool is created to simplify and standardize the Flaring waivers and to include the economic ALARP of the waiver decision | E3: 2016-02-15
B4: Rev 1.2 | C4: Harshit Agrawal | D4: - Updated the tool with additional inputs for Oil, Deferred Oil and Gas Price - Added the conclusion statement | E4: 2016-02-22

Sheet Flaring Waiver
A1: Rev 1.2 | F1: Revision Date: 22/03/2016 | K1: Rev 1.2 | P1: Revision Date: 22/03/2016
B2: Operations Flaring Variance Form | L2: Endorsement and Approval
A4: Subject: Request for Waiver for Temporary Flaring | K4: Reviewed By | O4: Name:
K5: Production Coordinator | O5: Ref. Ind
A6: Facility Name: | C6: =Sheet2!A2 -> Hawqa | L6: Approved | O6: Date
L7: Rejected
A8: Requestor Name: | C8: =Sheet2!B2 -> Khamis Al Kindy | F8: Requestor Ref. Indicator | H8: =Sheet2!C2 -> OSO3 | K8: Comments
A10: Requestor Position/ Title | C10: =Sheet2!D2 -> Programming Team Leader | F10: Date of Request | H10: =Sheet2!F2 -> 2016-03-22 | K10: Signature
K12: Approved By | O12: Name:
A13: Flaring Required for Period | K13: Delivery Team Leader | O13: Ref. Ind
L14: Approved | O14: Date
A15: From Date: | C15: =Sheet2!G2 -> 2016-04-01 | E15: To Date: | G15: =Sheet2!H2 -> 2017-04-01 | L15: Rejected
K16: Comments
A17: Brief Description of the Waiver (use separte sheet in case of insufficient space below)
A18: =Sheet2!K2 -> This waiver is to seek approval to flare gas from Hawqa by producing closed NFA wells through mobile test unit. This will allow the production of additional oil in 2016 | K18: Signature
K21: Authorised By | O21: Name:
K22: Operations Manager | O22: Ref. Ind
L23: Approved | O23: Date
A24: Justification of the Waiver (use separte sheet in case of insufficient space below) | L24: Rejected
A25: =Sheet2!L2 -> Production test HW existing wells to deliver addtional oil production in 2016 and to test new appraisal well using the new WTU to test each HQ well for 2-3 months each | K25: Comments
K27: Signature
A29: Assumed: | B29: Oil Cost ($/BBL) | D29: Deferred Oil Cost ($/BBL) | G29: Gas Cost ($/MMBTU) | K29: If identified by respective Cluster Flaring policy, get endorsement from Operations Director and Technical Director
B30: =Sheet2!N2 -> 65 | D30: =Sheet2!O2 -> 25 | G30: =Sheet2!P2 -> 6.5
A31: Flaring Limit/ Target | B31: Expected flaring above Target | C31: Expected Oil Deferment | D31: Expected Oil revenue | E31: Cost/benefit associated with avoiding any Flaring
B32: (yearly avg.) | C32: (yearly avg.) | E32: Oil Deferred – cost | F32: Gas Conserved - Saving | G32: Environmental Benefit | H32: Total Cost of Decision to avoid Flaring (oil - gas) | K32: Endorsed By
A33: Sm3/day | B33: Sm3/day | C33: m3/day | D33: 1000 USD/yr | E33: 1000 USD/yr | F33: 1000 USD/yr | G33: 1000 USD/yr | H33: 1000 USD/yr | K33: Operations Director Approved Rejected | O33: Technical Director Approved Rejected
A34: =Sheet2!E2*1000 -> 0 | B34: =Sheet2!D10*1000 -> 119917.8645 | C34: =Sheet2!D13 -> 299.7946612 | D34: =Sheet2!D15 -> 44769.075 | E34: =-Sheet2!D16 -> -17218.875 | F34: =Sheet2!D11 -> 10607.16043 | G34: =Sheet2!D18 -> 1120.032854 | H34: =E34+F34 -> -6611.714572 | K34: Name | O34: Name
A35: Conclusion: The total revenue of | D35: =D34 -> 44769.075 | E35: Thousand USD will be made if oil is produced. | K35: Date | O35: Date
A36: However, In order to avoid any flaring: | E36: =-E34 -> 17218.875 | F36: thousand USD, worth of Oil will be | K36: Comments | O36: Comments
A37: deferred. | B37: =F34 -> 10607.16043 | C37: thousand USD, worth of gas will be saved. | G37: =-H34 -> 6611.714572 | H37: Thousand USD
A38: will be the total cost to the company to avoid flaring. | F38: Avoiding the flaring will lead to | K38: Signature | O38: Signature
A39: estimated Environmental Benefit worth | E39: =G34 -> 1120.032854 | F39: Thousand USD.
A40: Signature of Requestor
A42: Please contact MSE/22 for any queries related to the form. | K42: Please contact MSE/22 for any queries related to the form.

Sheet Sheet2 (hidden)
A1: Facility Name | B1: Requestor Name | C1: Requestor Ref Id | D1: Requester Title | E1: Flaring Limit | F1: Request Date | G1: Flaring From | H1: Flaring To | I1: Flaring daily rate | J1: Oil daily rate | K1: Description | L1: Justification | M1: Noe | N1: Oil Price | O1: Def Oil Price | P1: Gas Price
A2: Hawqa | B2: Khamis Al Kindy | C2: OSO3 | D2: Programming Team Leader | E2: 0 | F2: 2016-03-22 | G2: 2016-04-01 | H2: 2017-04-01 | I2: 120 | J2: 300 | K2: This waiver is to seek approval to flare gas from Hawqa by producing closed NFA wells through mobile test unit. This will allow the production of additional oil in 2016 | L2: Production test HW existing wells to deliver addtional oil production in 2016 and to test new appraisal well using the new WTU to test each HQ well for 2-3 months each | M2: 22/03/2016 15:28:42 | N2: 65 | O2: 25 | P2: 6.5
B5: Input Daily Flaring Rate | C5: km3/day | D5: =I2 -> 120
B6: Input Reduction in Oil rate expected (Daily Average) | C6: m3/day | D6: =J2 -> 300
B7: Expected days of flaring | C7: days | D7: =H2-G2 -> 365
A9: Output
A10: Flaring Data | B10: Flaring rate (Averaged Yearly) | C10: km3/day | D10: =D5*D7/365.25 -> 119.9178645
B11: Cost of Gas lost due to flaring | C11: 1000 USD/yr | D11: =D10*1000*D31*D30*D26*365.25*0.000000000001*1000 -> 10607.16043
A13: Oil Data | B13: Reduction in oil rate (Averaged Yearly) | C13: m3/day | D13: =D6*D7/365.25 -> 299.7946612
B14: Reduction in oil rate (Averaged Yearly) | C14: bbl/day | D14: =D13*D32 -> 1885.708419
B15: Oil revenue Lost (not considering deferment) | C15: 1000 USD/yr | D15: =D14*D27*365.25*0.000001*1000 -> 44769.075
B16: Oil revenue Lost (considering deferment) | C16: 1000 USD/yr | D16: =D14*D28*365.25*0.000001*1000 -> 17218.875
A18: Emissions Data | B18: Environmental cost of CO2 emissions from Flaring | C18: 1000 USD/yr | D18: =D10*1000*D25*0.000001*D29*1000 -> 1120.032854
A20: Cost conclusions | B20: Total cost of the decision to avoid any flaring | C20: =C21 -> 1000 USD/yr | D20: =D16-D11 -> 6611.714572
B21: Money not made this year because of revnue of oil lost | C21: =C15 -> 1000 USD/yr | D21: =D15 -> 44769.075
A25: Factors | B25: CO2 emissions (tonnes/yr) from flaring (m3/day) | C25: (tonnes/yr )/ (m3/day) | D25: 0.934
B26: Base cost of gas | C26: $/MM Btu | D26: =P2 -> 6.5
B27: Oil Price | C27: $/bbl | D27: =N2 -> 65
B28: Defered Oil Price | C28: $/bbl | D28: =O2 -> 25
B29: Base cost of CO2 | C29: $/ton | D29: 10
B30: GHV for sweet gas export | C30: Btu/Scf | D30: 1055
B31: 1 SCM to SCF | C31: SCF/SCM | D31: 35.315
B32: 1 scm oil to BBL | C32: bbl/scm | D32: 6.29

Sheet Test (hidden)
A1: Input
B2: Input Daily Flaring Rate | C2: km3/day | D2: 5
B3: Input Reduction in Oil rate expected (Daily Average) | C3: m3/day | D3: 100
B4: Expected days of flaring | C4: days | D4: 2
A6: Output
A7: Flaring Data | B7: Flaring rate (Averaged Yearly) | C7: km3/day | D7: =D2*D4/365.25 -> 0.02737850787
B8: Cost of Gas lost due to flaring | C8: 1000 USD/yr | D8: =D7*1000*D32*D31*D27*365.25*0.000000000001*1000 -> 2.421726125
A10: Oil Data | B10: Reduction in oil rate (Averaged Yearly) | C10: m3/day | D10: =D3*D4/365.25 -> 0.5475701574
B11: Reduction in oil rate (Averaged Yearly) | C11: bbl/day | D11: =D10*D33 -> 3.44421629
B12: Oil revenue Lost (not considering deferment) | C12: 1000 USD/yr | D12: =D11*D28*365.25*0.000001*1000 -> 81.77
B13: Oil revenue Lost (considering deferment) | C13: 1000 USD/yr | D13: =D11*D29*365.25*0.000001*1000 -> 31.45
A15: Emissions Data | B15: Environmental cost of CO2 emissions from Flaring | C15: 1000 USD/yr | D15: =D7*1000*D26*0.000001*D30*1000 -> 0.2557152635
A17: Cost conclusions | B17: Total cost of the decision to avoid any flaring | C17: =C18 -> 1000 USD/yr | D17: =D13-D8 -> 29.02827388
B18: Money not made this year because of revnue of oil lost | C18: =C12 -> 1000 USD/yr | D18: =D12 -> 81.77
A21: Flaring Limit/ Target | B21: Expected flaring above Target | C21: Expected Oil Deferment | D21: Expected Oil revenue | E21: Cost/benefit associated with avoiding any Flaring
B22: (yearly avg.) | C22: (yearly avg.) | E22: Oil Deferred – cost | F22: Gas Conserved - Saving | G22: Environmental Benefit | H22: Total Cost of Decision to avoid flaring (oil - gas)
A23: Sm3/day | B23: Sm3/day | C23: m3/day | D23: 1000 USD/yr | E23: 1000 USD/yr | F23: 1000 USD/yr | G23: 1000 USD/yr | H23: 1000 USD/yr
A24: 145000 | B24: =D2 -> 5 | C24: =D3 -> 100 | D24: =D18 -> 81.77 | E24: =-D13 -> -31.45 | F24: =D8 -> 2.421726125 | G24: =D15 -> 0.2557152635 | H24: =E24+F24 -> -29.02827388
A26: Factors | B26: CO2 emissions (tonnes/yr) from flaring (m3/day) | C26: (tonnes/yr )/ (m3/day) | D26: 0.934
B27: Base cost of gas | C27: $/MM Btu | D27: 6.5
B28: Oil Price | C28: $/bbl | D28: 65
B29: Defered Oil Price | C29: $/bbl | D29: =50*0.5 -> 25
B30: Base cost of CO2 | C30: $/ton | D30: 10
B31: GHV for sweet gas export | C31: Btu/Scf | D31: 1055
B32: 1 SCM to SCF | C32: SCF/SCM | D32: 35.315
B33: 1 scm oil to BBL | C33: bbl/scm | D33: 6.29
